lending/lending_fUSD_20240723
["ID","MTS","AMOUNT","RATE_DAILY","PERIOD"]
[332995617,1721736633449,-3283.0,0.0001082,2]
[332995618,1721736633459,-1994.0,0.0001082,2]
[332995619,1721736633468,-1271.614,0.0001082,2]
[332995620,1721736633478,-1651.503,0.0001082,2]
[332995621,1721736633487,-1669.0,0.0001082,2]
[332995622,1721736633496,-5121.0,0.0001082,2]
[332995623,1721736633506,-38358.0,0.0001082,2]
[332995624,1721736633516,-169.67953006,0.00010885,2]
[332995625,1721736633525,-1000.0,0.00010894,2]
[332995626,1721736633534,-3000.0,0.00010898,2]
[332995627,1721736633544,-500.0,0.000109,3]
[332995628,1721736633554,-220.81,0.00010904,3]
[332995629,1721736633564,-500.0,0.00010911,2]
[332995630,1721736633573,-500.0,0.00010912,2]
[332995631,1721736633583,-152.53046895,0.00010914,2]
[332995632,1721736633592,-420.0,0.00010921,2]
[332995633,1721736633602,-222.20922438,0.0001095,2]
[332995634,1721736633611,-150.98429647,0.00010954,2]
[332995635,1721736633621,-500.0,0.00010958,2]
[332995636,1721736633630,-250.0,0.00010959,2]
[332995637,1721736633640,-156.73974447,0.00010961,2]
[332995638,1721736633650,-1108.84796961,0.00010963,2]
[332995639,1721736633659,-155.39218711,0.00010963,2]
[332995640,1721736633668,-353.14206442,0.00010965,2]
[332995641,1721736633679,-214.587591,0.0001099,2]
[332995642,1721736633687,-500.0,0.00010993,2]
[332995643,1721736633697,-2965.74,0.00010993,2]
[332995644,1721736633706,-389.64,0.00010993,2]
[332995645,1721736633715,-500.0,0.00010993,2]
[332995646,1721736633724,-500.0,0.00010993,2]
[332995647,1721736633734,-4300.4868595,0.00010994,2]
[332995648,1721736633743,-86267.98628567,0.00010994,2]
[332995649,1721736633755,-45186.23371037,0.00010994,2]
[332995650,1721736633876,-328.64556,0.00010994,2]
[332995652,1721736638166,-1073.0,0.0001082,2]
[332995653,1721736638178,-124599.14842095,0.00010994,2]
[332995654,1721736638192,-24042.9855599,0.00010995,2]
[332995655,1721736638202,-2019.3984211,0.00010995,2]
[332995656,1721736638212,-325.9997181,0.00010995,2]
[332995657,1721736638223,-11743.45869033,0.00010997,2]
[332995658,1721736638232,-500.0,0.00010998,2]
[332995659,1721736638242,-500.0,0.00010998,2]
[332995660,1721736638252,-597.28,0.00010998,2]
[332995661,1721736638265,-500.0,0.00010998,2]
[332995662,1721736638277,-500.0,0.00010998,2]
[332995663,1721736638287,-500.0,0.00010998,2]
[332995664,1721736638298,-167.82612819,0.00010998,2]
[332995665,1721736638309,-500.0,0.00010998,2]
[332995666,1721736638319,-500.0,0.00010998,2]
[332995667,1721736638330,-537.07,0.00010998,2]
[332995668,1721736638340,-500.0,0.00010998,2]
[332995669,1721736638351,-500.0,0.00010998,2]
[332995670,1721736638362,-500.0,0.00010998,2]
[332995671,1721736638372,-500.0,0.00010998,2]
[332995672,1721736638383,-500.0,0.00010998,2]
[332995673,1721736638393,-500.0,0.00010998,2]
[332995674,1721736638404,-500.0,0.00010998,2]
[332995675,1721736638415,-500.0,0.00010998,2]
[332995676,1721736638429,-500.0,0.00010998,2]
[332995677,1721736638443,-500.0,0.00010998,2]
[332995678,1721736638453,-500.0,0.00010998,2]
[332995679,1721736638465,-500.0,0.00010998,2]
[332995680,1721736638475,-500.0,0.00010998,2]
[332995681,1721736638486,-500.0,0.00010998,2]
[332995682,1721736638497,-500.0,0.00010998,2]
[332995683,1721736638507,-500.0,0.00010998,2]
[332995684,1721736638517,-500.0,0.00010998,2]
[332995685,1721736638528,-500.0,0.00010998,2]
[332995686,1721736638538,-500.0,0.00010998,2]
[332995687,1721736638548,-500.0,0.00010998,2]
[332995689,1721736638559,-500.0,0.00010998,2]
[332995691,1721736638569,-500.0,0.00010998,2]
[332995692,1721736638579,-500.0,0.00010998,2]
[332995693,1721736638590,-500.0,0.00010998,2]
[332995694,1721736638600,-574.24,0.00010998,2]
[332995695,1721736638611,-500.0,0.00010998,2]
[332995696,1721736638622,-500.0,0.00010998,2]
[332995697,1721736638631,-500.0,0.00010998,2]
[332995698,1721736638641,-500.0,0.00010998,2]
[332995699,1721736638651,-500.0,0.00010998,2]
[332995700,1721736638661,-500.0,0.00010998,2]
[332995701,1721736638671,-500.0,0.00010998,2]
[332995702,1721736638690,-350.13943815,0.00010998,2]
[332995703,1721736638702,-500.0,0.00010998,2]
[332995704,1721736638713,-543.32,0.00010998,2]
[332995705,1721736638722,-500.0,0.00010998,2]
[332995706,1721736638732,-500.0,0.00010998,2]
[332995707,1721736638743,-500.0,0.00010998,2]
[332995708,1721736638754,-500.0,0.00010998,2]
[332995709,1721736638764,-500.0,0.00010998,2]
[332995710,1721736638775,-500.0,0.00010998,2]
[332995711,1721736638785,-223.18627814,0.00010998,2]
[332995712,1721736638794,-500.0,0.00010998,2]
[332995713,1721736638805,-500.0,0.00010998,2]
[332995714,1721736638815,-500.0,0.00010998,2]
[332995715,1721736638826,-2965.74,0.00010998,2]
[332995716,1721736638837,-500.0,0.00010998,2]
[332995717,1721736638847,-500.0,0.00010998,2]
[332995718,1721736638857,-500.0,0.00010998,2]
[332995719,1721736638868,-500.0,0.00010998,2]
[332995720,1721736638878,-500.0,0.00010998,2]
[332995721,1721736638888,-321.73418785,0.00010998,2]
[332995722,1721736638899,-500.0,0.00010998,2]
[332995723,1721736638909,-1013.64867623,0.00010999,2]
[332995724,1721736638919,-397.93,0.00010999,2]
[332995725,1721736638934,-500.0,0.00010999,2]
[332995726,1721736638944,-500.0,0.00010999,2]
[332995727,1721736638954,-329.79,0.00010999,2]
[332995728,1721736638964,-191.42,0.00010999,2]
[332995729,1721736638974,-264.46,0.00010999,2]
[332995730,1721736638984,-307.25,0.00010999,2]
[332995731,1721736638994,-500.0,0.00010999,2]
[332995732,1721736639005,-631.26582867,0.00010999,2]
[332995733,1721736639015,-500.0,0.00010999,2]
[332995734,1721736639025,-226.61,0.00010999,2]
[332995735,1721736639036,-500.0,0.00010999,2]
[332995736,1721736639047,-500.0,0.00010999,2]
[332995737,1721736639057,-500.0,0.00010999,2]
[332995738,1721736639068,-500.0,0.00010999,2]
[332995739,1721736639702,-500.0,0.00010999,2]
[332995740,1721736639723,-636.2,0.00010999,2]
[332995741,1721736639739,-500.0,0.00010999,2]
[332995742,1721736639751,-500.0,0.00010999,2]
[332995743,1721736639760,-509.34,0.00010999,2]
[332995744,1721736639770,-500.0,0.00010999,2]
[332995745,1721736639780,-500.0,0.00010999,2]
[332995746,1721736639789,-500.0,0.00010999,2]
[332995747,1721736639799,-500.0,0.00010999,2]
[332995748,1721736639809,-500.0,0.00010999,2]
[332995749,1721736639819,-258.11,0.00010999,2]
[332995750,1721736639828,-500.0,0.00010999,2]
[332995751,1721736639838,-500.0,0.00010999,2]
[332995752,1721736639847,-500.0,0.00010999,2]
[332995753,1721736639858,-429.23634182,0.00010999,2]
[332995754,1721736639867,-500.0,0.00010999,2]
[332995755,1721736639877,-500.0,0.00010999,2]
[332995756,1721736639887,-500.0,0.00010999,2]
[332995757,1721736639897,-601.64,0.00010999,2]
[332995758,1721736639908,-500.0,0.00010999,2]
[332995759,1721736639918,-539.72,0.00010999,2]
[332995760,1721736639929,-635.32,0.00010999,2]
[332995761,1721736639939,-518.58,0.00010999,2]
[332995762,1721736639950,-500.0,0.00010999,2]
[332995764,1721736639959,-215.29,0.00010999,2]
[332995765,1721736639969,-464.68488091,0.00010999,2]
[332995766,1721736639978,-500.0,0.00010999,2]
[332995767,1721736639988,-500.0,0.00010999,2]
[332995768,1721736639998,-636.98,0.00010999,2]
[332995769,1721736640008,-500.0,0.00010999,2]
[332995770,1721736640018,-500.0,0.00010999,2]
[332995771,1721736640028,-508.65,0.00010999,2]
[332995772,1721736640037,-500.0,0.00010999,2]
[332995773,1721736640047,-500.0,0.00010999,2]
[332995774,1721736640056,-500.0,0.00010999,2]
[332995775,1721736640065,-571.15862645,0.00010999,2]
[332995776,1721736640075,-500.0,0.00010999,2]
[332995777,1721736640084,-600.29,0.00010999,2]
[332995778,1721736640094,-500.0,0.00010999,2]
[332995779,1721736640104,-500.0,0.00010999,2]
[332995781,1721736640113,-500.0,0.00010999,2]
[332995783,1721736640123,-500.0,0.00010999,2]
[332995784,1721736640132,-500.0,0.00010999,2]
[332995786,1721736640142,-500.0,0.00010999,2]
[332995788,1721736640151,-917.28,0.00010999,2]
[332995790,1721736640161,-917.28,0.00010999,2]
[332995792,1721736640171,-500.0,0.00010999,2]
[332995794,1721736640184,-917.28,0.00010999,2]
[332995796,1721736640194,-917.28,0.00010999,2]
[332995798,1721736640203,-917.28,0.00010999,2]
[332995800,1721736640213,-500.0,0.00010999,2]
[332995802,1721736640223,-917.28,0.00010999,2]
[332995804,1721736640233,-917.28,0.00010999,2]
[332995806,1721736640242,-917.28,0.00010999,2]
[332995807,1721736640252,-917.28,0.00010999,2]
[332995809,1721736640263,-917.28,0.00010999,2]
[332995811,1721736640273,-917.28,0.00010999,2]
[332995813,1721736640283,-917.28,0.00010999,2]
[332995815,1721736640292,-917.28,0.00010999,2]
[332995817,1721736640302,-917.28,0.00010999,2]
[332995818,1721736640311,-917.28,0.00010999,2]
[332995819,1721736640322,-917.28,0.00010999,2]
[332995820,1721736640331,-917.28,0.00010999,2]
[332995821,1721736640341,-917.28,0.00010999,2]
[332995822,1721736640351,-917.28,0.00010999,2]
[332995823,1721736640361,-917.28,0.00010999,2]
[332995824,1721736640371,-917.28,0.00010999,2]
[332995825,1721736640381,-183.96397841,0.00010999,2]
[332995826,1721736640391,-917.28,0.00010999,2]
[332995827,1721736640401,-917.28,0.00010999,2]
[332995828,1721736640410,-917.38718209,0.00010999,2]
[332995829,1721736640420,-500.0,0.00010999,2]
[332995830,1721736640431,-500.0,0.00010999,2]
[332995831,1721736640440,-500.0,0.00010999,2]
[332995832,1721736640450,-309.46,0.00010999,2]
[332995833,1721736640460,-500.0,0.00010999,2]
[332995834,1721736640470,-500.0,0.00010999,2]
[332995835,1721736640479,-500.0,0.00010999,2]
[332995836,1721736640489,-500.0,0.00010999,2]
[332995837,1721736640499,-500.0,0.00010999,2]
[332995838,1721736640508,-643.93,0.00010999,2]
[332995839,1721736640518,-500.0,0.00010999,2]
[332995840,1721736640527,-180.29,0.00010999,2]
[332995841,1721736640537,-500.0,0.00010999,2]
[332995842,1721736640547,-241.12,0.00010999,2]
[332995843,1721736640557,-645.28,0.00010999,2]
[332995844,1721736640566,-611.5,0.00010999,2]
[332995845,1721736640576,-500.0,0.00010999,2]
[332995846,1721736640586,-541.36,0.00010999,2]
[332995847,1721736640596,-500.0,0.00010999,2]
[332995848,1721736640606,-187.03,0.00010999,2]
[332995849,1721736640615,-541.32,0.00010999,2]
[332995850,1721736640625,-500.0,0.00010999,2]
[332995851,1721736640635,-478.01,0.00010999,2]
[332995852,1721736640644,-500.0,0.00010999,2]
[332995853,1721736640654,-500.0,0.00010999,2]
[332995854,1721736640664,-217.67,0.00010999,2]
[332995855,1721736640673,-500.0,0.00010999,2]
[332995856,1721736640683,-581.14,0.00010999,2]
[332995857,1721736640692,-500.0,0.00010999,2]
[332995858,1721736640702,-500.0,0.00010999,2]
[332995859,1721736640712,-424.84,0.00010999,2]
[332995860,1721736640722,-500.0,0.00010999,2]
[332995861,1721736640732,-159.3,0.00010999,2]
[332995862,1721736640741,-500.0,0.00010999,2]
[332995863,1721736640751,-500.0,0.00010999,2]
[332995864,1721736640761,-500.0,0.00010999,2]
[332995865,1721736640770,-499.91,0.00010999,2]
[332995866,1721736640780,-500.0,0.00010999,2]
[332995867,1721736640790,-500.0,0.00010999,2]
[332995868,1721736640800,-500.0,0.00010999,2]
[332995869,1721736640810,-500.0,0.00010999,2]
[332995870,1721736640819,-500.0,0.00010999,2]
[332995871,1721736640829,-500.0,0.00010999,2]
[332995872,1721736640838,-500.0,0.00010999,2]
[332995873,1721736640848,-500.0,0.00010999,2]
[332995874,1721736640857,-500.0,0.00010999,2]
[332995876,1721736640867,-500.0,0.00010999,2]
[332995878,1721736640877,-500.0,0.00010999,2]
[332995880,1721736640887,-500.0,0.00010999,2]
[332995881,1721736640899,-349.61696811,0.00010999,2]
[332995883,1721736640909,-500.0,0.00010999,2]
[332995885,1721736640918,-353.73,0.00010999,2]
[332995887,1721736640930,-500.0,0.00010999,2]
[332995889,1721736640940,-500.0,0.00010999,2]
[332995891,1721736640950,-612.44,0.00010999,2]
[332995893,1721736640959,-500.0,0.00010999,2]
[332995895,1721736640969,-255.37,0.00010999,2]
[332995897,1721736640979,-500.0,0.00010999,2]
[332995899,1721736640988,-500.0,0.00010999,2]
[332995901,1721736640998,-500.0,0.00010999,2]
[332995903,1721736641007,-356.62,0.00010999,2]
[332995905,1721736641017,-259.67,0.00010999,2]
[332995907,1721736641026,-500.0,0.00010999,2]
[332995909,1721736641035,-500.0,0.00010999,2]
[332995911,1721736641045,-391.71,0.00010999,2]
[332995913,1721736641055,-500.0,0.00010999,2]
[332995915,1721736641064,-250.6,0.00010999,2]
[332995917,1721736641074,-1049.95,0.00010999,2]
[332995919,1721736641084,-500.0,0.00010999,2]
[332995921,1721736641093,-500.0,0.00010999,2]
[332995923,1721736641102,-500.0,0.00010999,2]
[332995925,1721736641112,-500.0,0.00010999,2]
[332995927,1721736641122,-500.0,0.00010999,2]
[332995928,1721736641131,-500.0,0.00010999,2]
[332995929,1721736641141,-500.0,0.00010999,2]
[332995931,1721736641151,-500.0,0.00010999,2]
[332995933,1721736641160,-500.0,0.00010999,2]
[332995935,1721736641171,-500.0,0.00010999,2]
[332995937,1721736641187,-500.0,0.00010999,2]
[332995939,1721736641196,-500.0,0.00010999,2]
[332995941,1721736641206,-500.0,0.00010999,2]
[332995943,1721736641215,-500.0,0.00010999,2]
[332995945,1721736641226,-500.0,0.00010999,2]
[332995947,1721736641235,-500.0,0.00010999,2]
[332995949,1721736641245,-500.0,0.00010999,2]
[332995950,1721736641255,-236.16,0.00010999,2]
[332995952,1721736641265,-500.0,0.00010999,2]
[332995954,1721736641276,-500.0,0.00010999,2]
[332995956,1721736641285,-160.09794838,0.00010999,2]
[332995958,1721736641295,-500.0,0.00010999,2]
[332995960,1721736641305,-414.59,0.00010999,2]
[332995962,1721736641315,-500.0,0.00010999,2]
[332995964,1721736641324,-500.0,0.00010999,2]
[332995966,1721736641333,-180.04,0.00010999,2]
[332995968,1721736641342,-500.0,0.00010999,2]
[332995970,1721736641352,-248.69,0.00010999,2]
[332995972,1721736641362,-500.0,0.00010999,2]
[332995973,1721736641371,-170.3,0.00010999,2]
[332995975,1721736641381,-500.0,0.00010999,2]
[332995977,1721736641391,-500.0,0.00010999,2]
[332995979,1721736641400,-500.0,0.00010999,2]
[332995981,1721736641410,-500.0,0.00010999,2]
[332995983,1721736641419,-231.9,0.00010999,2]
[332995985,1721736641430,-500.0,0.00010999,2]
[332995987,1721736641439,-500.0,0.00010999,2]
[332995988,1721736641451,-500.0,0.00010999,2]
[332995990,1721736641460,-500.0,0.00010999,2]
[332995992,1721736641470,-500.0,0.00010999,2]
[332995994,1721736641479,-500.0,0.00010999,2]
[332995996,1721736641488,-500.0,0.00010999,2]
[332995998,1721736641499,-500.0,0.00010999,2]
[332996000,1721736641508,-349.94,0.00010999,2]
[332996002,1721736641518,-500.0,0.00010999,2]
[332996004,1721736641529,-366.44415292,0.00010999,2]
[332996006,1721736641538,-500.0,0.00010999,2]
[332996008,1721736641547,-362.53,0.00010999,2]
[332996010,1721736641556,-500.0,0.00010999,2]
[332996012,1721736641566,-443.58,0.00010999,2]
[332996014,1721736641575,-500.0,0.00010999,2]
[332996016,1721736641585,-209.08,0.00010999,2]
[332996018,1721736641595,-259.29,0.00010999,2]
[332996020,1721736641604,-2965.74,0.00010999,2]
[332996022,1721736641613,-500.0,0.00010999,2]
[332996024,1721736641623,-2965.74,0.00010999,2]
[332996026,1721736641632,-2965.74,0.00010999,2]
[332996028,1721736641641,-2965.74,0.00010999,2]
[332996030,1721736641650,-343.81,0.00010999,2]
[332996032,1721736641660,-2965.74,0.00010999,2]
[332996034,1721736641669,-500.0,0.00010999,2]
[332996036,1721736641680,-2965.74,0.00010999,2]
[332996038,1721736641690,-2965.74,0.00010999,2]
[332996040,1721736641699,-2965.74,0.00010999,2]
[332996042,1721736641708,-2965.74,0.00010999,2]
[332996044,1721736641717,-2965.74,0.00010999,2]
[332996046,1721736641726,-500.0,0.00010999,2]
[332996048,1721736641735,-2965.74,0.00010999,2]
[332996050,1721736641745,-500.0,0.00010999,2]
[332996052,1721736641754,-171.89,0.00010999,2]
[332996054,1721736641764,-2965.74,0.00010999,2]
[332996056,1721736641773,-500.0,0.00010999,2]
[332996058,1721736641783,-2965.74,0.00010999,2]
[332996060,1721736641792,-602.81,0.00010999,2]
[332996062,1721736641801,-2965.74,0.00010999,2]
[332996064,1721736641811,-2965.74,0.00010999,2]
[332996066,1721736641820,-2965.74,0.00010999,2]
[332996068,1721736641830,-2965.74,0.00010999,2]
[332996070,1721736641840,-2965.74,0.00010999,2]
[332996072,1721736641852,-500.0,0.00010999,2]
[332996074,1721736641861,-2965.74,0.00010999,2]
[332996076,1721736641870,-2965.74,0.00010999,2]
[332996079,1721736641889,-500.0,0.00010999,2]
[332996080,1721736641900,-2965.74,0.00010999,2]
[332996082,1721736641910,-500.0,0.00010999,2]
[332996084,1721736641919,-2965.97038276,0.00010999,2]
[332996086,1721736641931,-500.0,0.00010999,2]
[332996088,1721736641941,-500.0,0.00010999,2]
[332996090,1721736641951,-500.0,0.00010999,2]
[332996092,1721736641960,-500.0,0.00010999,2]
[332996094,1721736641970,-500.0,0.00010999,2]
[332996096,1721736641980,-500.0,0.00010999,2]
[332996098,1721736641989,-500.0,0.00010999,2]
[332996100,1721736641999,-500.0,0.00010999,2]
[332996102,1721736642009,-599.58,0.00010999,2]
[332996104,1721736642019,-500.0,0.00010999,2]
[332996106,1721736642028,-191.88,0.00010999,2]
[332996107,1721736642038,-500.0,0.00010999,2]
[332996110,1721736642048,-500.0,0.00010999,2]
[332996112,1721736642058,-500.0,0.00010999,2]
[332996114,1721736642067,-500.0,0.00010999,2]
[332996116,1721736642078,-500.0,0.00010999,2]
[332996118,1721736642087,-500.0,0.00010999,2]
[332996120,1721736642097,-500.0,0.00010999,2]
[332996129,1721736642193,-500.0,0.00010999,2]
[332996130,1721736642202,-440.01,0.00010999,2]
[332996131,1721736642212,-500.0,0.00010999,2]
[332996132,1721736642221,-342.37,0.00010999,2]
[332996133,1721736642230,-500.0,0.00010999,2]
[332996134,1721736642239,-500.0,0.00010999,2]
[332996135,1721736642248,-424.39,0.00010999,2]
[332996136,1721736642257,-616.09846383,0.00010999,2]
[332996137,1721736642267,-645.0,0.00011,2]
[332996138,1721736642276,-21093.93085867,0.00011,2]
[332996139,1721736642286,-20000.0,0.00011,3]
[332996140,1721736642295,-1072013.37518011,0.00011,2]
[332996141,1721736642317,-79861.68426258,0.00011,2]
[332996142,1721736642327,-2709.48663959,0.00011,2]
[332996143,1721736642347,-8491.66447959,0.00011,2]
[332996144,1721736642371,-600.0,0.00011,2]
[332996145,1721736642381,-614.32,0.00011,2]
[332996146,1721736642396,-597.4,0.00011,2]
[332996147,1721736642407,-31400.0,0.00011,2]
[332996148,1721736642557,-9096.64373114,0.00011,2]
[332996149,1721736642568,-8947.21879473,0.00011,2]
[332996150,1721736642579,-8943.78386462,0.00011,2]
[332996151,1721736642590,-9077.54866152,0.00011,2]
[332996152,1721736642601,-8943.84023489,0.00011,2]
[332996153,1721736642612,-492.62681269,0.00011,2]
[332996154,1721736642624,-1630.6,0.00011,2]
[332996155,1721736642635,-1072.66280005,0.00011,2]
[332996156,1721736642646,-14732.19448898,0.00011,2]
[332996157,1721736642658,-769.40917737,0.00011,2]
[332996158,1721736642669,-639.14654176,0.00011,2]
[332996159,1721736642686,-1436.17310946,0.00011,2]
[332996160,1721736642705,-449.03088406,0.00011,2]
[332996161,1721736642722,-768.95049403,0.00011,2]
[332996162,1721736642734,-8711.72604937,0.00011,2]
[332996163,1721736642745,-543.43566378,0.00011,2]
[332996164,1721736642756,-3364.54855239,0.00011,2]
[332996165,1721736642806,-58711.5819714,0.00011,2]
[332996169,1721736643222,-50000.0,0.00010997,2]
[332996170,1721736643231,-1210729.91041235,0.00011,2]
[332996171,1721736643242,-58621.91566837,0.00011,2]
[332996172,1721736643330,-319.999995,0.00011,2]
[332996173,1721736643385,-2692.34003545,0.00011,2]
[332996174,1721736643396,-548.9,0.00011,2]
[332996175,1721736643439,-265.6000002,0.00011,2]
[332996176,1721736643495,-653.31270692,0.00011,2]
[332996181,1721736645795,1369.42188879,8.219e-05,2]
[332996188,1721736646223,-10463.70163011,0.00011,2]
[332996189,1721736646592,-654696.53024194,0.00011,2]
[332996190,1721736646603,-6686.33062524,0.00011,2]
[332996193,1721736646616,-3946.85157832,0.00011,2]
[332996195,1721736646627,-56910.1194644,0.00011,2]
[332996197,1721736646638,-975.861078,0.00011,2]
[332996198,1721736646650,-414.86354645,0.00011,2]
[332996199,1721736646661,-644.28818466,0.00011,2]
[332996200,1721736646672,-4036.61298945,0.00011,2]
[332996202,1721737004100,580.18,8.219e-05,2]
[332996206,1721737068199,62630.4494172,8.219e-05,2]
[332996207,1721737107629,1369.42188879,8.219e-05,2]
[332996208,1721737172508,1000.0,9.041e-05,2]
[332996209,1721737199628,1369.42188879,8.219e-05,2]
[332996210,1721737204321,1033.0,0.000165,120]
[332996213,1721737589045,551.17,8.219e-05,2]
[332996215,1721737657725,1369.42188879,8.219e-05,2]
[332996225,1721737734662,1369.42188879,8.219e-05,2]
[332996229,1721737775898,1000.0,8.931e-05,2]
[332996255,1721737832415,-196.67535672,9.331e-05,2]
[332996256,1721737832425,-156.73974447,9.348e-05,2]
[332996257,1721737832434,-155.39218711,9.351e-05,2]
[332996258,1721737832444,-378.59,9.356e-05,2]
[332996259,1721737832455,-378.59,9.359e-05,2]
[332996260,1721737832464,-378.59,9.361e-05,2]
[332996261,1721737832475,-378.59,9.364e-05,2]
[332996262,1721737832485,-378.59,9.366e-05,2]
[332996263,1721737832494,-378.59,9.369e-05,2]
[332996264,1721737832506,-378.59,9.371e-05,2]
[332996265,1721737832518,-378.59,9.374e-05,2]
[332996266,1721737832528,-378.59,9.376e-05,2]
[332996267,1721737832539,-378.59,9.379e-05,2]
[332996268,1721737832549,-182.49365975,9.38e-05,2]
[332996269,1721737832558,-378.59,9.381e-05,2]
[332996270,1721737832567,-309.98525546,9.382e-05,2]
[332996271,1721737832576,-378.59,9.384e-05,2]
[332996272,1721737832587,-378.59,9.386e-05,2]
[332996273,1721737832596,-378.59,9.388e-05,2]
[332996274,1721737832605,-378.59,9.391e-05,2]
[332996275,1721737832614,-378.59,9.393e-05,2]
[332996277,1721737832623,-378.59,9.396e-05,2]
[332996278,1721737832632,-378.59,9.398e-05,2]
[332996280,1721737832641,-378.59,9.401e-05,2]
[332996282,1721737832651,-150.0,9.403e-05,2]
[332996284,1721737832660,-378.59,9.403e-05,2]
[332996286,1721737832670,-156.02826446,9.408e-05,2]
[332996288,1721737832680,-166.66666666,9.411e-05,2]
[332996290,1721737832689,-477.44206623,9.428e-05,2]
[332996291,1721737832700,-161.673222,9.433e-05,2]
[332996293,1721737832708,-178.16,9.477e-05,2]
[332996320,1721737832956,-185.17435365,9.489e-05,2]
[332996322,1721737832965,-155.39218711,9.49e-05,2]
[332996324,1721737832975,-913.16284478,9.586e-05,2]
[332996326,1721737832984,-167.08158442,9.624e-05,2]
[332996328,1721737832993,-283.67119642,9.644e-05,2]
[332996330,1721737833003,-887.07837569,9.649e-05,2]
[332996331,1721737833011,-151.4699368,9.656e-05,2]
[332996334,1721737833021,-827.85,9.67e-05,2]
[332996335,1721737833030,-499.99,9.67e-05,2]
[332996337,1721737833040,-283.67119642,9.709e-05,2]
[332996339,1721737833049,-309.98525546,9.736e-05,2]
[332996341,1721737833059,-193.31849777,9.746e-05,2]
[332996343,1721737833068,-166.66666667,9.759e-05,2]
[332996345,1721737833078,-887.07837569,9.858e-05,2]
[332996347,1721737833088,-156.02826446,9.896e-05,2]
[332996349,1721737833098,-913.16284478,9.904e-05,2]
[332996351,1721737833107,-393.1445974,9.934e-05,2]
[332996353,1721737833117,-401.94675473,9.962e-05,2]
[332996355,1721737833126,-14366.25712607,9.99e-05,2]
[332996357,1721737833135,-20198.834872,0.0001,2]
[332996359,1721737833145,-15393.62300968,0.0001,2]
[332996361,1721737833154,-1000.0,0.00010047,2]
[332996363,1721737833164,-913.16284478,0.0001005,2]
[332996365,1721737833173,-191.36306097,0.00010058,2]
[332996367,1721737833182,-165.35269091,0.00010059,2]
[332996369,1721737833192,-150.98429648,0.00010071,2]
[332996371,1721737833203,-10000.0,0.00010073,2]
[332996373,1721737833213,-150.98429648,0.00010084,2]
[332996375,1721737833222,-887.07837569,0.00010156,2]
[332996377,1721737833232,-191.36306097,0.00010189,2]
[332996379,1721737833243,-887.07837569,0.00010234,2]
[332996381,1721737833253,-151.32323001,0.00010253,2]
[332996383,1721737833264,-185.17435365,0.00010305,2]
[332996385,1721737833274,-185.17435365,0.00010327,2]
[332996387,1721737833286,-309.98525546,0.00010377,2]
[332996389,1721737833297,-283.67119642,0.00010419,2]
[332996391,1721737833306,-551.17,0.00010424,2]
[332996393,1721737833316,-477.44206623,0.00010429,2]
[332996395,1721737833326,-150.98429648,0.00010481,2]
[332996397,1721737833335,-166.66666666,0.000105,2]
[332996399,1721737833345,-166.66666667,0.00010661,2]
[332996401,1721737833355,-150.98429648,0.00010701,2]